[Event "Titled Tuesday Blitz May 30 Early 2023"]
[White "Asis Gargatagli, Hipolito"]
[Black "Ambartsumova, Karina"]
[WhiteFideId "2260735"]
[BlackFideId "4166299"]
[WhiteElo "2557"]
[BlackElo "2240"]
[Result "1/2-1/2"]
[Round "02"]
[TimeControl "180+2"]
[Date "2023.05.30"]
[WhiteClock "0:00:59"]
[BlackClock "0:00:06"]

1. e4 {[%clk 0:03:00]}  e5 {[%clk 0:02:59]} 2. Nf3 {[%clk 0:03:00]}  Nc6 {[%clk 0:02:59]} 3. Bb5 {[%clk 0:03:01]}  Nf6 {[%clk 0:02:59]} 4. O-O {[%clk 0:03:00]}  Nxe4 {[%clk 0:02:59]} 5. Re1 {[%clk 0:03:00]}  Nd6 {[%clk 0:02:58]} 6. Bf1 {[%clk 0:03:01]}  Be7 {[%clk 0:02:58]} 7. Nc3 {[%clk 0:03:01]}  O-O {[%clk 0:02:52]} 8. d4 {[%clk 0:03:01]}  Nxd4 {[%clk 0:02:31]} 9. Nxd4 {[%clk 0:02:57]}  exd4 {[%clk 0:02:32]} 10. Nd5 {[%clk 0:02:58]}  Bf6 {[%clk 0:02:27]} 11. Bf4 {[%clk 0:02:48]}  b6 {[%clk 0:01:39]} 12. Bxd6 {[%clk 0:02:30]}  cxd6 {[%clk 0:01:39]} 13. Qf3 {[%clk 0:02:31]}  Rb8 {[%clk 0:01:32]} 14. Nxf6+ {[%clk 0:02:30]}  Qxf6 {[%clk 0:01:33]} 15. Qxf6 {[%clk 0:02:31]}  gxf6 {[%clk 0:01:34]} 16. Rad1 {[%clk 0:02:31]}  Bb7 {[%clk 0:01:23]} 17. Rxd4 {[%clk 0:02:31]}  Rfe8 {[%clk 0:01:16]} 18. Red1 {[%clk 0:02:23]}  d5 {[%clk 0:01:13]} 19. c3 {[%clk 0:02:19]}  Re5 {[%clk 0:01:09]} 20. f3 {[%clk 0:02:19]}  Rbe8 {[%clk 0:01:08]} 21. Kf2 {[%clk 0:02:19]}  Bc6 {[%clk 0:01:00]} 22. R4d2 {[%clk 0:02:18]}  Kg7 {[%clk 0:00:56]} 23. g3 {[%clk 0:02:10]}  Re3 {[%clk 0:00:38]} 24. Rd4 {[%clk 0:02:07]}  R3e5 {[%clk 0:00:38]} 25. R1d2 {[%clk 0:02:05]}  Re1 {[%clk 0:00:37]} 26. Bg2 {[%clk 0:02:04]}  Ra1 {[%clk 0:00:35]} 27. a3 {[%clk 0:02:02]}  Ree1 {[%clk 0:00:34]} 28. g4 {[%clk 0:01:58]}  Reb1 {[%clk 0:00:30]} 29. f4 {[%clk 0:01:46]}  Ra2 {[%clk 0:00:26]} 30. Bxd5 {[%clk 0:01:39]}  Bxd5 {[%clk 0:00:25]} 31. Rxd5 {[%clk 0:01:39]}  Rbxb2 {[%clk 0:00:21]} 32. Rxb2 {[%clk 0:01:33]}  Rxb2+ {[%clk 0:00:21]} 33. Ke3 {[%clk 0:01:26]}  Rb3 {[%clk 0:00:22]} 34. Kd3 {[%clk 0:01:25]}  Rxa3 {[%clk 0:00:21]} 35. Rxd7 {[%clk 0:01:25]}  Ra2 {[%clk 0:00:19]} 36. h3 {[%clk 0:01:18]}  Rh2 {[%clk 0:00:12]} 37. Rxa7 {[%clk 0:01:18]}  Rxh3+ {[%clk 0:00:13]} 38. Ke4 {[%clk 0:01:17]}  Rxc3 {[%clk 0:00:13]} 39. Rb7 {[%clk 0:01:18]}  Rb3 {[%clk 0:00:13]} 40. Kf5 {[%clk 0:01:16]}  Rb1 {[%clk 0:00:12]} 41. Rb8 {[%clk 0:01:14]}  b5 {[%clk 0:00:12]} 42. Rb6 {[%clk 0:01:14]}  b4 {[%clk 0:00:12]} 43. Rxf6 {[%clk 0:01:14]}  b3 {[%clk 0:00:09]} 44. Rb6 {[%clk 0:01:14]}  h6 {[%clk 0:00:08]} 45. Rb8 {[%clk 0:01:09]}  b2 {[%clk 0:00:06]} 46. Rb6 {[%clk 0:01:06]}  Kh7 {[%clk 0:00:05]} 47. Rb7 {[%clk 0:01:03]}  Kg7 {[%clk 0:00:05]} 48. Rb6 {[%clk 0:01:03]}  Kh7 {[%clk 0:00:05]} 49. Rb7 {[%clk 0:01:03]}  Kg7 {[%clk 0:00:06]} 50. Rb8 {[%clk 0:01:02]}  Kh7 {[%clk 0:00:06]} 51. Rb7 {[%clk 0:00:59]} 1/2-1/2


[Site "https://www.chess.com"]

[Event "Titled Tuesday Blitz May 30 Early 2023"]
[White "Bartel, Michal"]
[Black "Pichot, Alan"]
[WhiteFideId "1119257"]
[BlackFideId "110973"]
[WhiteElo "2282"]
[BlackElo "2573"]
[Result "1/2-1/2"]
[Round "02"]
[TimeControl "180+2"]
[Date "2023.05.30"]
[WhiteClock "0:00:50"]
[BlackClock "0:00:11"]

1. e4 {[%clk 0:02:57]}  c5 {[%clk 0:02:57]} 2. Ne2 {[%clk 0:02:56]}  Nc6 {[%clk 0:02:53]} 3. g3 {[%clk 0:02:57]}  g6 {[%clk 0:02:43]} 4. Bg2 {[%clk 0:02:57]}  Bg7 {[%clk 0:02:43]} 5. c3 {[%clk 0:02:58]}  e5 {[%clk 0:02:40]} 6. d3 {[%clk 0:02:57]}  Nge7 {[%clk 0:02:40]} 7. Be3 {[%clk 0:02:58]}  d6 {[%clk 0:02:40]} 8. d4 {[%clk 0:02:58]}  b6 {[%clk 0:02:27]} 9. O-O {[%clk 0:02:57]}  O-O {[%clk 0:02:27]} 10. Na3 {[%clk 0:02:54]}  cxd4 {[%clk 0:02:15]} 11. cxd4 {[%clk 0:02:54]}  Ba6 {[%clk 0:02:16]} 12. d5 {[%clk 0:02:51]}  Nd4 {[%clk 0:02:16]} 13. Bxd4 {[%clk 0:02:47]}  exd4 {[%clk 0:02:16]} 14. Re1 {[%clk 0:02:39]}  d3 {[%clk 0:02:12]} 15. Nc3 {[%clk 0:02:39]}  Rc8 {[%clk 0:02:11]} 16. Nab1 {[%clk 0:02:34]}  f5 {[%clk 0:02:09]} 17. Qa4 {[%clk 0:02:22]}  Bc4 {[%clk 0:01:27]} 18. Nd2 {[%clk 0:02:06]}  b5 {[%clk 0:01:24]} 19. Nxb5 {[%clk 0:02:06]}  Bxb5 {[%clk 0:01:19]} 20. Qxb5 {[%clk 0:02:06]}  fxe4 {[%clk 0:01:19]} 21. Nxe4 {[%clk 0:02:03]}  Rb8 {[%clk 0:01:07]} 22. Qxd3 {[%clk 0:02:02]}  Rxb2 {[%clk 0:01:08]} 23. a4 {[%clk 0:01:53]}  Qb6 {[%clk 0:00:52]} 24. a5 {[%clk 0:01:47]}  Qb4 {[%clk 0:00:51]} 25. Rab1 {[%clk 0:01:39]}  Nf5 {[%clk 0:00:49]} 26. Rf1 {[%clk 0:01:25]}  Bd4 {[%clk 0:00:44]} 27. Rxb2 {[%clk 0:01:23]}  Qxb2 {[%clk 0:00:43]} 28. Bh3 {[%clk 0:01:19]}  Ne7 {[%clk 0:00:30]} 29. Be6+ {[%clk 0:01:10]}  Kg7 {[%clk 0:00:29]} 30. Qd2 {[%clk 0:00:59]}  Qxd2 {[%clk 0:00:20]} 31. Nxd2 {[%clk 0:01:00]}  Rb8 {[%clk 0:00:20]} 32. Rb1 {[%clk 0:00:55]}  Rxb1+ {[%clk 0:00:12]} 33. Nxb1 {[%clk 0:00:56]}  Kf6 {[%clk 0:00:11]} 34. Na3 {[%clk 0:00:53]}  Ke5 {[%clk 0:00:09]} 35. Nb5 {[%clk 0:00:50]}  Bc5 {[%clk 0:00:09]} 36. a6 {[%clk 0:00:49]}  Nxd5 {[%clk 0:00:08]} 37. Bg8 {[%clk 0:00:46]}  Nf6 {[%clk 0:00:09]} 38. Bf7 {[%clk 0:00:45]}  d5 {[%clk 0:00:09]} 39. Kf1 {[%clk 0:00:45]}  Ne4 {[%clk 0:00:09]} 40. f4+ {[%clk 0:00:40]}  Kf6 {[%clk 0:00:03]} 41. Bxd5 {[%clk 0:00:40]}  Nd6 {[%clk 0:00:03]} 42. Nxd6 {[%clk 0:00:40]}  Bxd6 {[%clk 0:00:04]} 43. Ke2 {[%clk 0:00:40]}  Bc5 {[%clk 0:00:04]} 44. Kf3 {[%clk 0:00:41]}  h6 {[%clk 0:00:04]} 45. h3 {[%clk 0:00:41]}  g5 {[%clk 0:00:05]} 46. fxg5+ {[%clk 0:00:42]}  hxg5 {[%clk 0:00:06]} 47. h4 {[%clk 0:00:42]}  gxh4 {[%clk 0:00:06]} 48. gxh4 {[%clk 0:00:43]}  Kg6 {[%clk 0:00:06]} 49. Bb7 {[%clk 0:00:43]}  Kh6 {[%clk 0:00:07]} 50. Ke4 {[%clk 0:00:43]}  Be7 {[%clk 0:00:07]} 51. Kd5 {[%clk 0:00:44]}  Bxh4 {[%clk 0:00:07]} 52. Kc6 {[%clk 0:00:45]}  Bf2 {[%clk 0:00:08]} 53. Kd7 {[%clk 0:00:45]}  Bb6 {[%clk 0:00:09]} 54. Kc8 {[%clk 0:00:46]}  Kg5 {[%clk 0:00:10]} 55. Kd7 {[%clk 0:00:47]}  Kh4 {[%clk 0:00:11]} 56. Kc6 {[%clk 0:00:48]}  Kg3 {[%clk 0:00:12]} 57. Kd7 {[%clk 0:00:49]}  Kf2 {[%clk 0:00:13]} 58. Kc6 {[%clk 0:00:50]}  Ke1 {[%clk 0:00:11]} 59. Kd7 {[%clk 0:00:50]} 1/2-1/2


[Site "https://www.chess.com"]

[Event "Titled Tuesday Blitz May 30 Early 2023"]
[White "Shuvalov, Evgenij"]
[Black "Ahmadzada, Ahmad"]
[WhiteFideId "4187237"]
[BlackFideId "13413007"]
[WhiteElo "2080"]
[BlackElo "2388"]
[Result "0-1"]
[Round "02"]
[TimeControl "180+2"]
[Date "2023.05.30"]
[WhiteClock "0:00:05"]
[BlackClock "0:00:08"]

1. d4 {[%clk 0:02:50]}  Nf6 {[%clk 0:02:59]} 2. c4 {[%clk 0:02:50]}  g6 {[%clk 0:03:00]} 3. Nc3 {[%clk 0:02:50]}  Bg7 {[%clk 0:03:01]} 4. e4 {[%clk 0:02:50]}  d6 {[%clk 0:03:01]} 5. Nf3 {[%clk 0:02:51]}  O-O {[%clk 0:03:02]} 6. Be2 {[%clk 0:02:51]}  Nbd7 {[%clk 0:03:02]} 7. O-O {[%clk 0:02:51]}  e5 {[%clk 0:03:03]} 8. Be3 {[%clk 0:02:52]}  Qe7 {[%clk 0:03:02]} 9. d5 {[%clk 0:02:52]}  Nc5 {[%clk 0:03:00]} 10. Nd2 {[%clk 0:02:51]}  a5 {[%clk 0:03:01]} 11. a3 {[%clk 0:02:50]}  a4 {[%clk 0:02:47]} 12. Bxc5 {[%clk 0:02:50]}  dxc5 {[%clk 0:02:48]} 13. Nxa4 {[%clk 0:02:50]}  Ne8 {[%clk 0:02:43]} 14. Nc3 {[%clk 0:02:45]}  f5 {[%clk 0:02:44]} 15. Re1 {[%clk 0:02:34]}  Nd6 {[%clk 0:02:43]} 16. a4 {[%clk 0:02:25]}  Qh4 {[%clk 0:02:39]} 17. Nf3 {[%clk 0:02:20]}  Qf6 {[%clk 0:02:37]} 18. Bd3 {[%clk 0:02:18]}  f4 {[%clk 0:02:36]} 19. h3 {[%clk 0:02:16]}  h5 {[%clk 0:02:29]} 20. Nh2 {[%clk 0:02:15]}  Bd7 {[%clk 0:02:18]} 21. Nb5 {[%clk 0:02:13]}  Rac8 {[%clk 0:02:11]} 22. Ra3 {[%clk 0:02:08]}  Nf7 {[%clk 0:01:52]} 23. Be2 {[%clk 0:01:55]}  Ng5 {[%clk 0:01:51]} 24. Bf1 {[%clk 0:01:48]}  Nf7 {[%clk 0:01:45]} 25. a5 {[%clk 0:01:39]}  Qg5 {[%clk 0:01:28]} 26. Nf3 {[%clk 0:01:35]}  Qh6 {[%clk 0:01:28]} 27. a6 {[%clk 0:01:28]}  b6 {[%clk 0:01:09]} 28. a7 {[%clk 0:01:25]}  g5 {[%clk 0:00:58]} 29. Nxc7 {[%clk 0:01:03]}  Rxc7 {[%clk 0:00:58]} 30. a8=Q {[%clk 0:01:03]}  Rxa8 {[%clk 0:00:59]} 31. Rxa8+ {[%clk 0:01:03]}  Kh7 {[%clk 0:01:00]} 32. d6 {[%clk 0:00:46]}  Rc6 {[%clk 0:00:55]} 33. Qd5 {[%clk 0:00:43]}  Kg6 {[%clk 0:00:44]} 34. Ra7 {[%clk 0:00:37]}  Rxd6 {[%clk 0:00:41]} 35. Qa8 {[%clk 0:00:28]}  g4 {[%clk 0:00:39]} 36. Nh4+ {[%clk 0:00:25]}  Kh7 {[%clk 0:00:37]} 37. Nf5 {[%clk 0:00:22]}  Bxf5 {[%clk 0:00:38]} 38. exf5 {[%clk 0:00:23]}  Qf6 {[%clk 0:00:38]} 39. Qe8 {[%clk 0:00:20]}  Nh6 {[%clk 0:00:28]} 40. Rxe5 {[%clk 0:00:16]}  g3 {[%clk 0:00:17]} 41. Ree7 {[%clk 0:00:16]}  Nxf5 {[%clk 0:00:16]} 42. Rf7 {[%clk 0:00:14]}  gxf2+ {[%clk 0:00:16]} 43. Kh2 {[%clk 0:00:14]}  Qg5 {[%clk 0:00:14]} 44. Rxf5 {[%clk 0:00:12]}  Qxf5 {[%clk 0:00:13]} 45. Be2 {[%clk 0:00:10]}  Qg5 {[%clk 0:00:07]} 46. Qe7 {[%clk 0:00:07]}  Qg3+ {[%clk 0:00:06]} 47. Kh1 {[%clk 0:00:05]}  Rd1+ {[%clk 0:00:07]} 48. Bxd1 {[%clk 0:00:05]}  f1=Q# {[%clk 0:00:08]} 0-1


[Site "https://www.chess.com"]

[Event "Titled Tuesday Blitz May 30 Early 2023"]
[White "Sharapov, Evgeny"]
[Black "Molina, Roberto Junio Brito"]
[WhiteFideId "14103133"]
[BlackFideId "2109450"]
[WhiteElo "2367"]
[BlackElo "2376"]
[Result "1-0"]
[Round "02"]
[TimeControl "180+2"]
[Date "2023.05.30"]
[WhiteClock "0:00:10"]
[BlackClock "0:00:14"]

1. e4 {[%clk 0:02:59]}  c6 {[%clk 0:03:00]} 2. d4 {[%clk 0:02:59]}  d5 {[%clk 0:03:01]} 3. e5 {[%clk 0:02:59]}  Bf5 {[%clk 0:03:01]} 4. Be3 {[%clk 0:03:00]}  Qb6 {[%clk 0:03:01]} 5. Qc1 {[%clk 0:02:58]}  e6 {[%clk 0:03:01]} 6. c4 {[%clk 0:02:58]}  dxc4 {[%clk 0:03:01]} 7. Bxc4 {[%clk 0:02:57]}  Qd8 {[%clk 0:02:43]} 8. Nc3 {[%clk 0:02:53]}  Nd7 {[%clk 0:02:43]} 9. Nge2 {[%clk 0:02:52]}  Nb6 {[%clk 0:02:43]} 10. Bb3 {[%clk 0:02:52]}  Ne7 {[%clk 0:02:43]} 11. O-O {[%clk 0:02:51]}  Ned5 {[%clk 0:02:41]} 12. Ng3 {[%clk 0:02:50]}  Bd3 {[%clk 0:02:39]} 13. Rd1 {[%clk 0:02:47]}  Bg6 {[%clk 0:02:38]} 14. Bg5 {[%clk 0:02:45]}  Qd7 {[%clk 0:02:35]} 15. Nce4 {[%clk 0:02:44]}  h6 {[%clk 0:02:35]} 16. Bd2 {[%clk 0:02:43]}  Be7 {[%clk 0:02:32]} 17. Nc5 {[%clk 0:02:41]}  Qc8 {[%clk 0:02:23]} 18. f4 {[%clk 0:02:41]}  h5 {[%clk 0:02:09]} 19. h3 {[%clk 0:02:37]}  h4 {[%clk 0:02:06]} 20. Nge4 {[%clk 0:02:30]}  Nd7 {[%clk 0:02:02]} 21. Nd6+ {[%clk 0:02:23]}  Bxd6 {[%clk 0:02:01]} 22. exd6 {[%clk 0:02:23]}  N7f6 {[%clk 0:01:40]} 23. Re1 {[%clk 0:02:18]}  Bf5 {[%clk 0:01:32]} 24. Bc2 {[%clk 0:02:12]}  g6 {[%clk 0:01:28]} 25. b4 {[%clk 0:02:00]}  b6 {[%clk 0:01:23]} 26. Nd3 {[%clk 0:01:58]}  Bxd3 {[%clk 0:01:19]} 27. Bxd3 {[%clk 0:01:58]}  Qd7 {[%clk 0:01:19]} 28. b5 {[%clk 0:01:45]}  cxb5 {[%clk 0:01:14]} 29. Qb2 {[%clk 0:01:36]}  a6 {[%clk 0:01:07]} 30. f5 {[%clk 0:01:09]}  gxf5 {[%clk 0:01:06]} 31. Bxf5 {[%clk 0:01:09]}  Qxd6 {[%clk 0:01:06]} 32. Re5 {[%clk 0:01:08]}  O-O-O {[%clk 0:00:59]} 33. Bd3 {[%clk 0:01:02]}  Kb7 {[%clk 0:00:58]} 34. a4 {[%clk 0:01:02]}  b4 {[%clk 0:00:58]} 35. a5 {[%clk 0:00:56]}  b5 {[%clk 0:00:56]} 36. Bg5 {[%clk 0:00:52]}  Rd7 {[%clk 0:00:45]} 37. Rf1 {[%clk 0:00:50]}  Ne8 {[%clk 0:00:45]} 38. Be4 {[%clk 0:00:48]}  Nc7 {[%clk 0:00:45]} 39. Bf4 {[%clk 0:00:44]}  Qf8 {[%clk 0:00:37]} 40. Bh2 {[%clk 0:00:37]}  Ka7 {[%clk 0:00:33]} 41. Qf2 {[%clk 0:00:27]}  Rg8 {[%clk 0:00:29]} 42. Bxd5 {[%clk 0:00:26]}  Nxd5 {[%clk 0:00:21]} 43. Rxe6 {[%clk 0:00:26]}  Qg7 {[%clk 0:00:19]} 44. Rc6 {[%clk 0:00:21]}  f5 {[%clk 0:00:14]} 45. Rc5 {[%clk 0:00:19]}  f4 {[%clk 0:00:12]} 46. Kh1 {[%clk 0:00:18]}  Qg5 {[%clk 0:00:08]} 47. Qf3 {[%clk 0:00:17]}  Kb8 {[%clk 0:00:08]} 48. Bxf4+ {[%clk 0:00:15]}  Qxf4 {[%clk 0:00:07]} 49. Qxf4+ {[%clk 0:00:15]}  Nxf4 {[%clk 0:00:08]} 50. Rxf4 {[%clk 0:00:16]}  Rgd8 {[%clk 0:00:08]} 51. Rxh4 {[%clk 0:00:14]}  Rxd4 {[%clk 0:00:09]} 52. Rxd4 {[%clk 0:00:13]}  Rxd4 {[%clk 0:00:10]} 53. Rc2 {[%clk 0:00:12]}  b3 {[%clk 0:00:10]} 54. Rb2 {[%clk 0:00:12]}  Rd3 {[%clk 0:00:09]} 55. Kh2 {[%clk 0:00:12]}  Kc7 {[%clk 0:00:10]} 56. h4 {[%clk 0:00:12]}  Kc6 {[%clk 0:00:11]} 57. h5 {[%clk 0:00:12]}  Kc5 {[%clk 0:00:12]} 58. h6 {[%clk 0:00:12]}  Kb4 {[%clk 0:00:13]} 59. g4 {[%clk 0:00:10]}  Kc3 {[%clk 0:00:12]} 60. Rg2 {[%clk 0:00:10]}  b2 {[%clk 0:00:11]} 61. Rxb2 {[%clk 0:00:10]}  Kxb2 {[%clk 0:00:12]} 62. g5 {[%clk 0:00:10]}  Rd6 {[%clk 0:00:12]} 63. Kg3 {[%clk 0:00:10]}  b4 {[%clk 0:00:12]} 64. h7 {[%clk 0:00:10]}  Rd8 {[%clk 0:00:12]} 65. g6 {[%clk 0:00:10]}  b3 {[%clk 0:00:13]} 66. g7 {[%clk 0:00:11]}  Kc2 {[%clk 0:00:13]} 67. g8=Q {[%clk 0:00:11]}  Rxg8+ {[%clk 0:00:13]} 68. hxg8=Q {[%clk 0:00:11]}  b2 {[%clk 0:00:14]} 69. Qc4+ {[%clk 0:00:11]}  Kd2 {[%clk 0:00:14]} 70. Qb4+ {[%clk 0:00:10]}  Kc2 {[%clk 0:00:15]} 71. Qc4+ {[%clk 0:00:09]}  Kd2 {[%clk 0:00:16]} 72. Qb3 {[%clk 0:00:10]}  Kc1 {[%clk 0:00:16]} 73. Qc3+ {[%clk 0:00:10]}  Kb1 {[%clk 0:00:17]} 74. Kf2 {[%clk 0:00:10]}  Ka2 {[%clk 0:00:18]} 75. Qc4+ {[%clk 0:00:10]}  Ka3 {[%clk 0:00:18]} 76. Qc3+ {[%clk 0:00:09]}  Ka2 {[%clk 0:00:18]} 77. Qc2 {[%clk 0:00:10]}  Ka1 {[%clk 0:00:18]} 78. Qa4+ {[%clk 0:00:09]}  Kb1 {[%clk 0:00:19]} 79. Ke2 {[%clk 0:00:09]}  Kc1 {[%clk 0:00:20]} 80. Qc4+ {[%clk 0:00:09]}  Kb1 {[%clk 0:00:20]} 81. Kd2 {[%clk 0:00:10]}  Ka1 {[%clk 0:00:20]} 82. Qa4+ {[%clk 0:00:09]}  Kb1 {[%clk 0:00:14]} 83. Kc3 {[%clk 0:00:10]} 1-0


[Site "https://www.chess.com"]

[Event "Titled Tuesday Blitz May 30 Early 2023"]
[White "ArrestingPieces"]
[Black "Vitiugov, Nikita"]
[BlackFideId "4152956"]
[WhiteElo "2558"]
[BlackElo "2673"]
[Result "0-1"]
[Round "02"]
[TimeControl "180+2"]
[Date "2023.05.30"]
[WhiteClock "0:01:49"]
[BlackClock "0:02:04"]

1. d4 {[%clk 0:03:00]}  d5 {[%clk 0:02:57]} 2. Nf3 {[%clk 0:03:00]}  Nf6 {[%clk 0:02:55]} 3. c3 {[%clk 0:03:00]}  e6 {[%clk 0:02:48]} 4. Bf4 {[%clk 0:02:59]}  Bd6 {[%clk 0:02:46]} 5. e3 {[%clk 0:02:59]}  O-O {[%clk 0:02:44]} 6. Nbd2 {[%clk 0:02:58]}  c5 {[%clk 0:02:36]} 7. Bg3 {[%clk 0:02:45]}  b6 {[%clk 0:02:33]} 8. Bd3 {[%clk 0:02:44]}  Ba6 {[%clk 0:02:32]} 9. Qe2 {[%clk 0:02:41]}  Bxd3 {[%clk 0:02:30]} 10. Qxd3 {[%clk 0:02:42]}  Nc6 {[%clk 0:02:29]} 11. O-O {[%clk 0:02:37]}  Bxg3 {[%clk 0:02:27]} 12. hxg3 {[%clk 0:02:37]}  Re8 {[%clk 0:02:24]} 13. e4 {[%clk 0:02:36]}  dxe4 {[%clk 0:02:17]} 14. Nxe4 {[%clk 0:02:36]}  cxd4 {[%clk 0:02:17]} 15. Rfd1 {[%clk 0:02:07]}  e5 {[%clk 0:02:10]} 16. cxd4 {[%clk 0:01:54]}  exd4 {[%clk 0:02:07]} 17. Nxd4 {[%clk 0:01:54]}  Nxd4 {[%clk 0:02:05]} 18. Nxf6+ {[%clk 0:01:54]}  Qxf6 {[%clk 0:02:05]} 19. Qxd4 {[%clk 0:01:55]}  Re1+ {[%clk 0:02:04]} 20. Kh2 {[%clk 0:01:49]}  Qxd4 {[%clk 0:02:04]} 0-1


[Site "https://www.chess.com"]

[Event "Titled Tuesday Blitz May 30 Early 2023"]
[White "Sethuraman, S.P."]
[Black "Gheorghiu, Calin"]
[WhiteFideId "5021596"]
[BlackFideId "1200305"]
[WhiteElo "2543"]
[BlackElo "2223"]
[Result "1-0"]
[Round "02"]
[TimeControl "180+2"]
[Date "2023.05.30"]
[WhiteClock "0:01:46"]
[BlackClock "0:00:00"]

1. d4 {[%clk 0:03:00]}  Nf6 {[%clk 0:02:33]} 2. c4 {[%clk 0:03:00]}  e6 {[%clk 0:02:32]} 3. Nc3 {[%clk 0:03:00]}  Bb4 {[%clk 0:02:32]} 4. e3 {[%clk 0:03:00]}  O-O {[%clk 0:02:29]} 5. a3 {[%clk 0:03:00]}  Bxc3+ {[%clk 0:02:23]} 6. bxc3 {[%clk 0:03:01]}  d5 {[%clk 0:02:21]} 7. cxd5 {[%clk 0:03:00]}  exd5 {[%clk 0:02:20]} 8. Bd3 {[%clk 0:03:01]}  c5 {[%clk 0:02:20]} 9. Ne2 {[%clk 0:02:58]}  b6 {[%clk 0:02:20]} 10. O-O {[%clk 0:02:54]}  Ba6 {[%clk 0:02:20]} 11. dxc5 {[%clk 0:02:53]}  bxc5 {[%clk 0:02:19]} 12. Bxa6 {[%clk 0:02:51]}  Nxa6 {[%clk 0:02:18]} 13. c4 {[%clk 0:02:52]}  dxc4 {[%clk 0:01:41]} 14. Qa4 {[%clk 0:02:51]}  Qb6 {[%clk 0:01:29]} 15. Qxc4 {[%clk 0:02:45]}  Nc7 {[%clk 0:01:24]} 16. Bd2 {[%clk 0:02:43]}  Rfd8 {[%clk 0:01:19]} 17. Bc3 {[%clk 0:02:35]}  Ncd5 {[%clk 0:01:03]} 18. Rab1 {[%clk 0:02:30]}  Qe6 {[%clk 0:00:46]} 19. Bxf6 {[%clk 0:02:23]}  Nxf6 {[%clk 0:00:35]} 20. Qxc5 {[%clk 0:02:05]}  Ne4 {[%clk 0:00:30]} 21. Qa5 {[%clk 0:02:05]}  Rd5 {[%clk 0:00:18]} 22. Qxa7 {[%clk 0:01:56]}  Rdd8 {[%clk 0:00:05]} 23. Rbd1 {[%clk 0:01:48]}  Nd2 {[%clk 0:00:00]} 24. Rxd2 {[%clk 0:01:46]} 1-0


[Site "https://www.chess.com"]

[Event "Titled Tuesday Blitz May 30 Early 2023"]
[White "Degenbaev, Aziz"]
[Black "Mendonca, Leon Luke"]
[WhiteFideId "13802640"]
[BlackFideId "35028561"]
[WhiteElo "2152"]
[BlackElo "2464"]
[Result "1-0"]
[Round "02"]
[TimeControl "180+2"]
[Date "2023.05.30"]
[WhiteClock "0:00:19"]
[BlackClock "0:00:04"]

1. e4 {[%clk 0:03:00]}  c6 {[%clk 0:02:47]} 2. d4 {[%clk 0:02:59]}  d5 {[%clk 0:02:48]} 3. e5 {[%clk 0:03:00]}  g6 {[%clk 0:02:44]} 4. Bf4 {[%clk 0:02:53]}  Bg7 {[%clk 0:02:43]} 5. Qd2 {[%clk 0:02:54]}  f6 {[%clk 0:02:40]} 6. h4 {[%clk 0:02:49]}  h5 {[%clk 0:02:33]} 7. Bd3 {[%clk 0:02:46]}  Kf7 {[%clk 0:02:21]} 8. Nf3 {[%clk 0:02:45]}  Nh6 {[%clk 0:02:20]} 9. Nc3 {[%clk 0:02:45]}  Bf5 {[%clk 0:02:19]} 10. O-O-O {[%clk 0:02:45]}  Bxd3 {[%clk 0:02:16]} 11. Qxd3 {[%clk 0:02:45]}  Ng4 {[%clk 0:02:14]} 12. e6+ {[%clk 0:02:43]}  Kg8 {[%clk 0:02:05]} 13. Qxg6 {[%clk 0:02:40]}  Rh7 {[%clk 0:02:02]} 14. Rhf1 {[%clk 0:02:25]}  Na6 {[%clk 0:02:00]} 15. Ng1 {[%clk 0:02:09]}  Qe8 {[%clk 0:01:58]} 16. Qxe8+ {[%clk 0:02:07]}  Rxe8 {[%clk 0:01:57]} 17. f3 {[%clk 0:02:08]}  Nh6 {[%clk 0:01:55]} 18. Nge2 {[%clk 0:02:02]}  Nf5 {[%clk 0:01:55]} 19. Rh1 {[%clk 0:02:00]}  Bh6 {[%clk 0:01:55]} 20. g4 {[%clk 0:01:23]}  hxg4 {[%clk 0:01:18]} 21. Rdg1 {[%clk 0:00:59]}  Bxf4+ {[%clk 0:00:32]} 22. Nxf4 {[%clk 0:00:59]}  Nxd4 {[%clk 0:00:33]} 23. Rxg4+ {[%clk 0:00:58]}  Rg7 {[%clk 0:00:33]} 24. Rhg1 {[%clk 0:00:59]}  Rxg4 {[%clk 0:00:33]} 25. Rxg4+ {[%clk 0:00:58]}  Kh7 {[%clk 0:00:34]} 26. Nfxd5 {[%clk 0:00:54]}  Nxe6 {[%clk 0:00:30]} 27. Ne3 {[%clk 0:00:46]}  Nac5 {[%clk 0:00:29]} 28. Nf5 {[%clk 0:00:44]}  Nd7 {[%clk 0:00:26]} 29. Re4 {[%clk 0:00:40]}  Ndc5 {[%clk 0:00:26]} 30. Rg4 {[%clk 0:00:33]}  Nd7 {[%clk 0:00:26]} 31. Re4 {[%clk 0:00:33]}  Ndf8 {[%clk 0:00:25]} 32. Ne2 {[%clk 0:00:31]}  Kg6 {[%clk 0:00:20]} 33. Neg3 {[%clk 0:00:31]}  Kf7 {[%clk 0:00:18]} 34. Rg4 {[%clk 0:00:28]}  Rd8 {[%clk 0:00:15]} 35. h5 {[%clk 0:00:27]}  Ng5 {[%clk 0:00:14]} 36. f4 {[%clk 0:00:27]}  Ngh7 {[%clk 0:00:14]} 37. Rg7+ {[%clk 0:00:26]}  Ke6 {[%clk 0:00:14]} 38. Rxe7+ {[%clk 0:00:26]}  Kd5 {[%clk 0:00:14]} 39. Rxb7 {[%clk 0:00:21]}  Re8 {[%clk 0:00:14]} 40. Kd2 {[%clk 0:00:21]}  a6 {[%clk 0:00:14]} 41. b3 {[%clk 0:00:21]}  Kc5 {[%clk 0:00:09]} 42. c4 {[%clk 0:00:21]}  a5 {[%clk 0:00:04]} 43. Kd3 {[%clk 0:00:19]}  Ne6 {[%clk 0:00:04]} 44. Ne4# {[%clk 0:00:19]} 1-0


[Site "https://www.chess.com"]

[Event "Titled Tuesday Blitz May 30 Early 2023"]
[White "Kravtsiv, Martyn"]
[Black "Belov, Alexei"]
[WhiteFideId "14113147"]
[BlackFideId "4128206"]
[WhiteElo "2695"]
[BlackElo "2547"]
[Result "1-0"]
[Round "02"]
[TimeControl "180+2"]
[Date "2023.05.30"]
[WhiteClock "0:00:14"]
[BlackClock "0:00:05"]

1. e4 {[%clk 0:03:00]}  e6 {[%clk 0:03:00]} 2. d4 {[%clk 0:02:59]}  d5 {[%clk 0:03:00]} 3. Nc3 {[%clk 0:02:58]}  Nf6 {[%clk 0:03:00]} 4. e5 {[%clk 0:02:56]}  Ne4 {[%clk 0:03:00]} 5. Nce2 {[%clk 0:02:50]}  f6 {[%clk 0:03:00]} 6. f3 {[%clk 0:02:46]}  Ng5 {[%clk 0:03:00]} 7. Bxg5 {[%clk 0:02:38]}  fxg5 {[%clk 0:03:00]} 8. Nh3 {[%clk 0:02:38]}  c5 {[%clk 0:02:58]} 9. Nc3 {[%clk 0:02:30]}  Nc6 {[%clk 0:02:53]} 10. Bb5 {[%clk 0:02:29]}  Bd7 {[%clk 0:02:47]} 11. Bxc6 {[%clk 0:02:28]}  bxc6 {[%clk 0:02:45]} 12. Qd2 {[%clk 0:02:21]}  h6 {[%clk 0:02:40]} 13. Ne2 {[%clk 0:02:15]}  cxd4 {[%clk 0:02:35]} 14. Nxd4 {[%clk 0:02:02]}  Be7 {[%clk 0:02:16]} 15. O-O {[%clk 0:02:00]}  c5 {[%clk 0:02:07]} 16. Ne2 {[%clk 0:01:57]}  O-O {[%clk 0:01:57]} 17. c3 {[%clk 0:01:56]}  Rb8 {[%clk 0:01:52]} 18. f4 {[%clk 0:01:54]}  gxf4 {[%clk 0:01:37]} 19. Nexf4 {[%clk 0:01:53]}  Bg5 {[%clk 0:01:26]} 20. Rf2 {[%clk 0:01:50]}  Rf5 {[%clk 0:01:17]} 21. Re1 {[%clk 0:01:47]}  Qc7 {[%clk 0:01:00]} 22. Nxg5 {[%clk 0:01:21]}  Rxg5 {[%clk 0:00:50]} 23. h4 {[%clk 0:00:58]}  Rxe5 {[%clk 0:00:36]} 24. Ng6 {[%clk 0:00:58]}  Rxe1+ {[%clk 0:00:28]} 25. Qxe1 {[%clk 0:00:59]}  Qd6 {[%clk 0:00:28]} 26. h5 {[%clk 0:00:58]}  e5 {[%clk 0:00:13]} 27. Qxe5 {[%clk 0:00:45]}  Qxe5 {[%clk 0:00:12]} 28. Nxe5 {[%clk 0:00:46]}  Be8 {[%clk 0:00:13]} 29. g4 {[%clk 0:00:45]}  Rb6 {[%clk 0:00:12]} 30. Kh2 {[%clk 0:00:41]}  Re6 {[%clk 0:00:12]} 31. Nd3 {[%clk 0:00:41]}  c4 {[%clk 0:00:09]} 32. Nf4 {[%clk 0:00:38]}  Re4 {[%clk 0:00:08]} 33. Kg3 {[%clk 0:00:37]}  d4 {[%clk 0:00:09]} 34. cxd4 {[%clk 0:00:30]}  Rxd4 {[%clk 0:00:09]} 35. Ne6 {[%clk 0:00:15]}  Bd7 {[%clk 0:00:05]} 36. Nxd4 {[%clk 0:00:14]} 1-0


[Site "https://www.chess.com"]